[Event "Late-Titled-Tuesday-Blitz-February-06-2024"]
[Site "Chess.com"]
[Date "2024.02.06"]
[Round "5"]
[White "krzyzan94"]
[Black "Tsschessulover"]
[Result "0-1"]
[WhiteElo "2796"]
[BlackElo "2599"]
[TimeControl "180+1"]
[EndTime "14:56:31 PST"]
[Termination "Tsschessulover won on time"]

1. e4 {[%clk 0:03:00.9]} 1... e5 {[%clk 0:02:59.2]} 2. Nf3 {[%clk 0:03:00.7]}
2... Nf6 {[%clk 0:02:59.8]} 3. Nc3 {[%clk 0:02:58]} 3... Nc6 {[%clk 0:02:59.6]}
4. h3 {[%clk 0:02:56.8]} 4... d5 {[%clk 0:02:52.6]} 5. exd5 {[%clk 0:02:54.9]}
5... Nxd5 {[%clk 0:02:53.5]} 6. Bb5 {[%clk 0:02:55]} 6... Nxc3 {[%clk
0:02:53.3]} 7. bxc3 {[%clk 0:02:53.2]} 7... Bd6 {[%clk 0:02:53.7]} 8. d4 {[%clk
0:02:51.8]} 8... Bd7 {[%clk 0:02:53.8]} 9. O-O {[%clk 0:02:49.5]} 9... O-O
{[%clk 0:02:53.5]} 10. Re1 {[%clk 0:02:42.6]} 10... Nxd4 {[%clk 0:02:52]} 11.
Nxd4 {[%clk 0:02:34.9]} 11... exd4 {[%clk 0:02:51.8]} 12. Bxd7 {[%clk 0:02:34]}
12... Qxd7 {[%clk 0:02:51.8]} 13. cxd4 {[%clk 0:02:34.3]} 13... Qa4 {[%clk
0:02:42.3]} 14. Be3 {[%clk 0:02:31.6]} 14... Qc4 {[%clk 0:02:29.9]} 15. Rb1
{[%clk 0:02:15.9]} 15... b6 {[%clk 0:02:29.7]} 16. Rb3 {[%clk 0:02:14.7]} 16...
Rfe8 {[%clk 0:02:27.2]} 17. Qd3 {[%clk 0:02:13.1]} 17... Qxd3 {[%clk 0:02:25.2]}
18. Rxd3 {[%clk 0:02:14]} 18... Bf4 {[%clk 0:02:21.4]} 19. c4 {[%clk 0:02:11.2]}
19... Bxe3 {[%clk 0:02:20.5]} 20. fxe3 {[%clk 0:02:12.1]} 20... c5 {[%clk
0:01:58.9]} 21. dxc5 {[%clk 0:01:58.3]} 21... bxc5 {[%clk 0:01:58.8]} 22. Rd5
{[%clk 0:01:57.2]} 22... Rac8 {[%clk 0:01:31.6]} 23. Kf2 {[%clk 0:01:46.9]}
23... Rc6 {[%clk 0:01:19.4]} 24. Rb1 {[%clk 0:01:38.7]} 24... Rf6+ {[%clk
0:01:13.3]} 25. Ke2 {[%clk 0:01:38.9]} 25... Ra6 {[%clk 0:01:10.8]} 26. Rb2
{[%clk 0:01:25.1]} 26... Ra3 {[%clk 0:01:09.3]} 27. Rd3 {[%clk 0:01:19.9]} 27...
Ra4 {[%clk 0:01:01.5]} 28. Rc2 {[%clk 0:01:13.3]} 28... g6 {[%clk 0:01:00]} 29.
a3 {[%clk 0:01:04.4]} 29... Re4 {[%clk 0:00:54.1]} 30. Rdc3 {[%clk 0:01:01.9]}
30... Re6 {[%clk 0:00:54.3]} 31. Rd2 {[%clk 0:00:56.9]} 31... Kg7 {[%clk
0:00:46]} 32. Rd7 {[%clk 0:00:52.9]} 32... Rea6 {[%clk 0:00:40.5]} 33. Rdd3
{[%clk 0:00:51.7]} 33... Rb6 {[%clk 0:00:37.5]} 34. Kf3 {[%clk 0:00:50.9]} 34...
Rb2 {[%clk 0:00:35.4]} 35. Rd7 {[%clk 0:00:44.5]} 35... Ra2 {[%clk 0:00:35.4]}
36. Rb3 {[%clk 0:00:44.7]} 36... Ra6 {[%clk 0:00:27.4]} 37. g4 {[%clk
0:00:34.6]} 37... R2xa3 {[%clk 0:00:24.8]} 38. Rxa3 {[%clk 0:00:20.6]} 38...
Rxa3 {[%clk 0:00:25.7]} 39. Rc7 {[%clk 0:00:20]} 39... Ra1 {[%clk 0:00:23]} 40.
Rxc5 {[%clk 0:00:19.5]} 40... a5 {[%clk 0:00:23.7]} 41. Rc6 {[%clk 0:00:16.6]}
41... a4 {[%clk 0:00:24.1]} 42. Ra6 {[%clk 0:00:16.7]} 42... a3 {[%clk
0:00:24.2]} 43. Kg2 {[%clk 0:00:12.4]} 43... a2 {[%clk 0:00:22.7]} 44. g5 {[%clk
0:00:11.7]} 44... Rc1 {[%clk 0:00:20.6]} 45. Rxa2 {[%clk 0:00:11.3]} 45... Rxc4
{[%clk 0:00:20.8]} 46. Kg3 {[%clk 0:00:11.7]} 46... Rb4 {[%clk 0:00:20.6]} 47.
Ra5 {[%clk 0:00:11.2]} 47... Rc4 {[%clk 0:00:21]} 48. Rd5 {[%clk 0:00:10.9]}
48... Rb4 {[%clk 0:00:21.4]} 49. Kf3 {[%clk 0:00:11]} 49... Ra4 {[%clk
0:00:21.6]} 50. e4 {[%clk 0:00:11.5]} 50... Rb4 {[%clk 0:00:21.1]} 51. Rd7
{[%clk 0:00:11]} 51... Ra4 {[%clk 0:00:21.5]} 52. e5 {[%clk 0:00:10.7]} 52...
Kg8 {[%clk 0:00:17.9]} 53. Rd8+ {[%clk 0:00:09.7]} 53... Kg7 {[%clk 0:00:18]}
54. Re8 {[%clk 0:00:09.8]} 54... Rh4 {[%clk 0:00:15.9]} 55. Kg3 {[%clk
0:00:06.7]} 55... Re4 {[%clk 0:00:15.9]} 56. h4 {[%clk 0:00:06.4]} 56... Re1
{[%clk 0:00:15.1]} 57. Re7 {[%clk 0:00:06]} 57... Kf8 {[%clk 0:00:15]} 58. Ra7
{[%clk 0:00:04.4]} 58... Rxe5 {[%clk 0:00:15.2]} 59. Kf4 {[%clk 0:00:02.8]}
59... Rb5 {[%clk 0:00:15.1]} 60. Rc7 {[%clk 0:00:02.8]} 60... Rb4+ {[%clk
0:00:15.2]} 61. Kg3 {[%clk 0:00:03.2]} 61... Kg7 {[%clk 0:00:15.7]} 62. Ra7
{[%clk 0:00:03.1]} 62... Rc4 {[%clk 0:00:16.1]} 63. Rd7 {[%clk 0:00:03]} 63...
Rc3+ {[%clk 0:00:16.6]} 64. Kg4 {[%clk 0:00:03.2]} 64... Rc2 {[%clk 0:00:17.4]}
65. Kg3 {[%clk 0:00:03.6]} 65... Rc1 {[%clk 0:00:17.5]} 66. Kg4 {[%clk
0:00:04.1]} 66... Rh1 {[%clk 0:00:17.5]} 67. Kg3 {[%clk 0:00:04.3]} 67... Rg1+
{[%clk 0:00:16.9]} 68. Kf4 {[%clk 0:00:04.6]} 68... h6 {[%clk 0:00:13.5]} 69.
Ra7 {[%clk 0:00:03]} 69... h5 {[%clk 0:00:12.1]} 70. Ke5 {[%clk 0:00:01.9]}
70... Rg4 {[%clk 0:00:12.1]} 71. Kd6 {[%clk 0:00:01.5]} 71... Rxh4 {[%clk
0:00:12.3]} 0-1

[Event "Late-Titled-Tuesday-Blitz-February-06-2024"]
[Site "Chess.com"]
[Date "2024.02.06"]
[Round "5"]
[White "Pawngobblerx2000"]
[Black "LionTheLeon_06"]
[Result "0-1"]
[WhiteElo "2511"]
[BlackElo "2876"]
[TimeControl "180+1"]
[EndTime "14:56:31 PST"]
[Termination "LionTheLeon_06 won by checkmate"]

1. c4 {[%clk 0:03:00.9]} 1... b6 {[%clk 0:02:59.6]} 2. e4 {[%clk 0:03:00.3]}
2... Bb7 {[%clk 0:02:59.9]} 3. Nc3 {[%clk 0:03:00]} 3... c5 {[%clk 0:02:59.6]}
4. g3 {[%clk 0:02:59.6]} 4... g6 {[%clk 0:02:59.6]} 5. Bg2 {[%clk 0:03:00.2]}
5... Bg7 {[%clk 0:03:00.3]} 6. Nge2 {[%clk 0:03:00.8]} 6... d6 {[%clk
0:03:00.3]} 7. O-O {[%clk 0:03:00.9]} 7... Nc6 {[%clk 0:03:01]} 8. d3 {[%clk
0:02:59.4]} 8... Nf6 {[%clk 0:03:00.6]} 9. a3 {[%clk 0:02:59.5]} 9... O-O {[%clk
0:03:00.7]} 10. Rb1 {[%clk 0:03:00]} 10... Nd7 {[%clk 0:02:59.7]} 11. b4 {[%clk
0:03:00.1]} 11... e6 {[%clk 0:02:59.6]} 12. Be3 {[%clk 0:02:58.6]} 12... Qe7
{[%clk 0:02:59]} 13. Qd2 {[%clk 0:02:47]} 13... Rfc8 {[%clk 0:02:57]} 14. Bg5
{[%clk 0:02:44.1]} 14... Qe8 {[%clk 0:02:55.9]} 15. Bh6 {[%clk 0:02:43.5]} 15...
Bh8 {[%clk 0:02:55.3]} 16. Bf4 {[%clk 0:02:42.7]} 16... Qe7 {[%clk 0:02:54.4]}
17. Nb5 {[%clk 0:02:38.9]} 17... Nde5 {[%clk 0:02:53.2]} 18. Bg5 {[%clk
0:02:31.1]} 18... f6 {[%clk 0:02:37.6]} 19. Bf4 {[%clk 0:02:28.6]} 19... g5
{[%clk 0:02:36.6]} 20. Be3 {[%clk 0:02:28.6]} 20... Ng4 {[%clk 0:02:36.5]} 21.
f4 {[%clk 0:02:26.3]} 21... Nxe3 {[%clk 0:02:35.4]} 22. Qxe3 {[%clk 0:02:27.2]}
22... Rf8 {[%clk 0:02:28.9]} 23. Qd2 {[%clk 0:02:17.9]} 23... Rae8 {[%clk
0:02:25.4]} 24. f5 {[%clk 0:02:04.7]} 24... exf5 {[%clk 0:02:16.2]} 25. Rxf5
{[%clk 0:02:05.6]} 25... Bc8 {[%clk 0:02:16.3]} 26. Rff1 {[%clk 0:02:01.5]}
26... Ne5 {[%clk 0:02:13.6]} 27. Nec3 {[%clk 0:01:57.6]} 27... Bg4 {[%clk
0:01:57.9]} 28. Nd5 {[%clk 0:01:57.1]} 28... Qd7 {[%clk 0:01:57.8]} 29. Ne3
{[%clk 0:01:48.5]} 29... Be6 {[%clk 0:01:55.7]} 30. Nc3 {[%clk 0:01:46.6]} 30...
Bg7 {[%clk 0:01:42.3]} 31. b5 {[%clk 0:01:46.5]} 31... f5 {[%clk 0:01:40.8]} 32.
exf5 {[%clk 0:01:44.4]} 32... Bxf5 {[%clk 0:01:41.2]} 33. Bd5+ {[%clk
0:01:40.6]} 33... Kh8 {[%clk 0:01:41.4]} 34. Ne4 {[%clk 0:01:31]} 34... Bg6
{[%clk 0:01:27.7]} 35. Qe2 {[%clk 0:01:22.7]} 35... h6 {[%clk 0:01:24.7]} 36.
Rxf8+ {[%clk 0:01:22.4]} 36... Rxf8 {[%clk 0:01:24.9]} 37. Rf1 {[%clk
0:01:22.4]} 37... Rxf1+ {[%clk 0:01:24.2]} 38. Qxf1 {[%clk 0:01:23.3]} 38... Kh7
{[%clk 0:01:14.4]} 39. Qe2 {[%clk 0:01:19.2]} 39... g4 {[%clk 0:01:13.9]} 40.
Nf2 {[%clk 0:01:17.2]} 40... h5 {[%clk 0:01:11.8]} 41. Be4 {[%clk 0:01:10.5]}
41... Qf7 {[%clk 0:01:08.8]} 42. Kg2 {[%clk 0:01:04.5]} 42... Qe6 {[%clk
0:00:55.3]} 43. Nd5 {[%clk 0:01:04]} 43... Qf7 {[%clk 0:00:47.6]} 44. Nf4 {[%clk
0:01:01.8]} 44... Bxe4+ {[%clk 0:00:44.5]} 45. Qxe4+ {[%clk 0:00:57.4]} 45...
Kh6 {[%clk 0:00:40.8]} 46. Nd1 {[%clk 0:00:47.7]} 46... Bf6 {[%clk 0:00:33.8]}
47. Ne3 {[%clk 0:00:47.4]} 47... Be7 {[%clk 0:00:18.2]} 48. Nf5+ {[%clk
0:00:46.2]} 48... Kg5 {[%clk 0:00:18.7]} 49. Ne3 {[%clk 0:00:19.1]} 49... Bf8
{[%clk 0:00:15.9]} 50. Qd5 {[%clk 0:00:18.1]} 50... h4 {[%clk 0:00:10.8]} 51.
Ne6+ {[%clk 0:00:16.3]} 51... Kh6 {[%clk 0:00:06.1]} 52. Nf4 {[%clk 0:00:14.4]}
52... h3+ {[%clk 0:00:05.5]} 53. Kh1 {[%clk 0:00:12.3]} 53... Qxd5+ {[%clk
0:00:05.8]} 54. Nexd5 {[%clk 0:00:12.9]} 54... Kg5 {[%clk 0:00:05.5]} 55. Nc7
{[%clk 0:00:11.7]} 55... Bh6 {[%clk 0:00:04]} 56. Nce6+ {[%clk 0:00:08.5]} 56...
Kf5 {[%clk 0:00:04.2]} 57. Kg1 {[%clk 0:00:06.4]} 57... Bxf4 {[%clk 0:00:04.1]}
58. Nxf4 {[%clk 0:00:05.9]} 58... Nf3+ {[%clk 0:00:04.8]} 59. Kh1 {[%clk
0:00:06]} 59... Ne1 {[%clk 0:00:05.5]} 60. Kg1 {[%clk 0:00:05.6]} 60... Nc2
{[%clk 0:00:06.1]} 61. a4 {[%clk 0:00:04.8]} 61... Ne1 {[%clk 0:00:06.3]} 62.
Kf2 {[%clk 0:00:05.2]} 62... Nf3 {[%clk 0:00:06.7]} 63. Nd5 {[%clk 0:00:03.1]}
63... Nxh2 {[%clk 0:00:06.9]} 64. a5 {[%clk 0:00:03.4]} 64... bxa5 {[%clk
0:00:06.8]} 65. Ne7+ {[%clk 0:00:03.2]} 65... Ke6 {[%clk 0:00:05.2]} 66. Nc6
{[%clk 0:00:04.1]} 66... a4 {[%clk 0:00:05.4]} 67. Nxa7 {[%clk 0:00:04.8]} 67...
a3 {[%clk 0:00:06.3]} 68. b6 {[%clk 0:00:05.3]} 68... a2 {[%clk 0:00:07]} 69. b7
{[%clk 0:00:06.2]} 69... a1=Q {[%clk 0:00:07.5]} 70. b8=Q {[%clk 0:00:07.1]}
70... Qf1+ {[%clk 0:00:06.6]} 71. Ke3 {[%clk 0:00:07.5]} 71... Qe1+ {[%clk
0:00:06.8]} 72. Kf4 {[%clk 0:00:07.4]} 72... Qe5# {[%clk 0:00:07]} 0-1

[Event "Late-Titled-Tuesday-Blitz-February-06-2024"]
[Site "Chess.com"]
[Date "2024.02.06"]
[Round "5"]
[White "Vicmary2005"]
[Black "jcmesafischer"]
[Result "1-0"]
[WhiteElo "2036"]
[BlackElo "2354"]
[TimeControl "180+1"]
[EndTime "14:56:31 PST"]
[Termination "Vicmary2005 won by checkmate"]

1. e4 {[%clk 0:03:00.9]} 1... c5 {[%clk 0:02:55]} 2. Nf3 {[%clk 0:03:00.6]} 2...
d6 {[%clk 0:02:55.2]} 3. d4 {[%clk 0:03:00.5]} 3... cxd4 {[%clk 0:02:52.7]} 4.
Qxd4 {[%clk 0:03:01.4]} 4... Nf6 {[%clk 0:02:34.4]} 5. Bg5 {[%clk 0:02:58.5]}
5... Nc6 {[%clk 0:02:33.5]} 6. Bb5 {[%clk 0:02:55.5]} 6... Qa5+ {[%clk
0:02:26.6]} 7. Nc3 {[%clk 0:02:55.1]} 7... Qxb5 {[%clk 0:02:06.3]} 8. Nxb5
{[%clk 0:02:56]} 8... Nxd4 {[%clk 0:02:06.8]} 9. Nfxd4 {[%clk 0:02:53.6]} 9...
Nxe4 {[%clk 0:02:06.7]} 10. Nc7+ {[%clk 0:01:58.2]} 10... Kd7 {[%clk 0:02:03.6]}
11. Nxa8 {[%clk 0:01:59.1]} 11... Nxg5 {[%clk 0:02:03.1]} 12. Nb5 {[%clk
0:01:54.7]} 12... a6 {[%clk 0:01:57.1]} 13. Nc3 {[%clk 0:01:28.3]} 13... Kc6
{[%clk 0:01:55.4]} 14. a4 {[%clk 0:01:24]} 14... b6 {[%clk 0:01:45.6]} 15. a5
{[%clk 0:01:23.4]} 15... bxa5 {[%clk 0:01:45.7]} 16. Rxa5 {[%clk 0:01:23.1]}
16... Bb7 {[%clk 0:01:45.9]} 17. Rxg5 {[%clk 0:01:22.7]} 17... Bxa8 {[%clk
0:01:45.5]} 18. O-O {[%clk 0:01:16.3]} 18... e5 {[%clk 0:01:39.4]} 19. Rg3
{[%clk 0:01:11.4]} 19... g6 {[%clk 0:01:36.2]} 20. Rd1 {[%clk 0:01:02.3]} 20...
f5 {[%clk 0:01:34.3]} 21. Nd5 {[%clk 0:00:56.7]} 21... e4 {[%clk 0:01:14.6]} 22.
Rc3+ {[%clk 0:00:52]} 22... Kb7 {[%clk 0:01:02.9]} 23. Rb3+ {[%clk 0:00:39.7]}
23... Kc6 {[%clk 0:01:00.8]} 24. Rc3+ {[%clk 0:00:39.7]} 24... Kb7 {[%clk
0:01:00.5]} 25. Rc7+ {[%clk 0:00:39.4]} 25... Kb8 {[%clk 0:01:00.3]} 26. Rf7
{[%clk 0:00:32.2]} 26... Bh6 {[%clk 0:00:51.8]} 27. Nb4 {[%clk 0:00:24.7]} 27...
Bf4 {[%clk 0:00:48.4]} 28. Nxa6+ {[%clk 0:00:22.3]} 28... Kc8 {[%clk 0:00:47.6]}
29. Rc7+ {[%clk 0:00:14.7]} 29... Kd8 {[%clk 0:00:46.6]} 30. Ra1 {[%clk
0:00:10.3]} 30... d5 {[%clk 0:00:28.7]} 31. Rf7 {[%clk 0:00:09.3]} 31... Ke8
{[%clk 0:00:20.4]} 32. Ra7 {[%clk 0:00:06.9]} 32... Bc6 {[%clk 0:00:19.1]} 33.
Nc7+ {[%clk 0:00:06.5]} 33... Kd7 {[%clk 0:00:04.4]} 34. Nxd5+ {[%clk
0:00:06.3]} 34... Kd6 {[%clk 0:00:04.6]} 35. Nxf4 {[%clk 0:00:06.6]} 35... Rb8
{[%clk 0:00:02.5]} 36. b3 {[%clk 0:00:05.8]} 36... Be8 {[%clk 0:00:02.3]} 37.
Ne2 {[%clk 0:00:05.4]} 37... Rc8 {[%clk 0:00:02]} 38. c4 {[%clk 0:00:04.7]}
38... Rb8 {[%clk 0:00:01.6]} 39. R7a3 {[%clk 0:00:04.3]} 39... Ke5 {[%clk
0:00:02.1]} 40. g3 {[%clk 0:00:02.9]} 40... g5 {[%clk 0:00:02.3]} 41. Kf1 {[%clk
0:00:02.8]} 41... Kf6 {[%clk 0:00:02.9]} 42. Ke1 {[%clk 0:00:03.2]} 42... Ke5
{[%clk 0:00:03.8]} 43. Nc3 {[%clk 0:00:03.4]} 43... f4 {[%clk 0:00:04.7]} 44.
Nd5 {[%clk 0:00:03.6]} 44... Bf7 {[%clk 0:00:04.1]} 45. Nc7 {[%clk 0:00:03.3]}
45... e3 {[%clk 0:00:03.8]} 46. Ra5+ {[%clk 0:00:03.3]} 46... Ke4 {[%clk
0:00:03.4]} 47. Rxg5 {[%clk 0:00:03.7]} 47... Rxb3 {[%clk 0:00:02.9]} 48. gxf4
{[%clk 0:00:03.9]} 48... Bxc4 {[%clk 0:00:03.1]} 49. fxe3 {[%clk 0:00:03.9]}
49... Rxe3+ {[%clk 0:00:02.9]} 50. Kf2 {[%clk 0:00:03.8]} 50... Re2+ {[%clk
0:00:03.5]} 51. Kg1 {[%clk 0:00:04.1]} 51... Kf3 {[%clk 0:00:04.1]} 52. Rg3+
{[%clk 0:00:04.2]} 52... Kxf4 {[%clk 0:00:04.4]} 53. Ra4 {[%clk 0:00:04.4]}
53... Re1+ {[%clk 0:00:04.7]} 54. Kg2 {[%clk 0:00:04.7]} 54... Re2+ {[%clk
0:00:04.5]} 55. Kh3 {[%clk 0:00:05.1]} 55... Re4 {[%clk 0:00:04.5]} 56. Rc3
{[%clk 0:00:04.9]} 56... Be6+ {[%clk 0:00:04.3]} 57. Nxe6+ {[%clk 0:00:05.1]}
57... Ke5 {[%clk 0:00:03.4]} 58. Rxe4+ {[%clk 0:00:06]} 58... Kxe4 {[%clk
0:00:03.6]} 59. Ng5+ {[%clk 0:00:06]} 59... Kf5 {[%clk 0:00:04.5]} 60. Nxh7
{[%clk 0:00:06.2]} 60... Kg6 {[%clk 0:00:05.4]} 61. Rg3+ {[%clk 0:00:06.4]}
61... Kf7 {[%clk 0:00:06.2]} 62. Kg2 {[%clk 0:00:06.7]} 62... Ke7 {[%clk
0:00:05.5]} 63. h4 {[%clk 0:00:07.6]} 63... Kf7 {[%clk 0:00:06.4]} 64. h5 {[%clk
0:00:08.1]} 64... Ke6 {[%clk 0:00:07.3]} 65. Ng5+ {[%clk 0:00:08.1]} 65... Kf6
{[%clk 0:00:06.9]} 66. Nf3 {[%clk 0:00:08.5]} 66... Kf5 {[%clk 0:00:06.9]} 67.
h6 {[%clk 0:00:08.9]} 67... Kf6 {[%clk 0:00:07.8]} 68. h7 {[%clk 0:00:09.2]}
68... Kf5 {[%clk 0:00:08.7]} 69. h8=Q {[%clk 0:00:08.3]} 69... Kf4 {[%clk
0:00:09.6]} 70. Qe5# {[%clk 0:00:07.7]} 1-0

[Event "Late-Titled-Tuesday-Blitz-February-06-2024"]
[Site "Chess.com"]
[Date "2024.02.06"]
[Round "5"]
[White "IsaqueGoncalvesSanto"]
[Black "rionelG"]
[Result "0-1"]
[WhiteElo "1927"]
[BlackElo "2239"]
[TimeControl "180+1"]
[EndTime "14:56:31 PST"]
[Termination "rionelG won on time"]

1. d4 {[%clk 0:02:52.8]} 1... d5 {[%clk 0:02:57.6]} 2. c4 {[%clk 0:02:51.4]}
2... e6 {[%clk 0:02:56.6]} 3. Nc3 {[%clk 0:01:29.5]} 3... Nf6 {[%clk 0:02:51.4]}
4. Bg5 {[%clk 0:01:28.8]} 4... Be7 {[%clk 0:02:49]} 5. Nf3 {[%clk 0:01:28.8]}
5... O-O {[%clk 0:02:46.7]} 6. e3 {[%clk 0:01:28.8]} 6... a6 {[%clk 0:02:20.2]}
7. Rc1 {[%clk 0:01:26.7]} 7... h6 {[%clk 0:02:03.1]} 8. Bh4 {[%clk 0:01:26.7]}
8... Nbd7 {[%clk 0:01:56.2]} 9. cxd5 {[%clk 0:01:26.2]} 9... exd5 {[%clk
0:01:57.1]} 10. Bd3 {[%clk 0:01:25.3]} 10... c6 {[%clk 0:01:52.7]} 11. O-O
{[%clk 0:01:24.9]} 11... Re8 {[%clk 0:01:51.6]} 12. h3 {[%clk 0:01:25]} 12...
Ne4 {[%clk 0:01:50.2]} 13. Nxe4 {[%clk 0:01:23]} 13... dxe4 {[%clk 0:01:51.1]}
14. Bxe7 {[%clk 0:01:13.1]} 14... Qxe7 {[%clk 0:01:52]} 15. Bxe4 {[%clk
0:01:02.6]} 15... Qxe4 {[%clk 0:01:52.9]} 16. Nd2 {[%clk 0:01:03.2]} 16... Qg6
{[%clk 0:01:51.2]} 17. Qc2 {[%clk 0:00:41]} 17... Qxc2 {[%clk 0:01:39.6]} 18.
Rxc2 {[%clk 0:00:40.4]} 18... Nf6 {[%clk 0:01:39.7]} 19. Re1 {[%clk 0:00:38.5]}
19... Bf5 {[%clk 0:01:24.1]} 20. Rc5 {[%clk 0:00:38]} 20... Bg6 {[%clk
0:01:22.5]} 21. f3 {[%clk 0:00:36.8]} 21... Rad8 {[%clk 0:01:17.3]} 22. Nb3
{[%clk 0:00:35.7]} 22... Nd5 {[%clk 0:01:15.3]} 23. e4 {[%clk 0:00:33.7]} 23...
Nf4 {[%clk 0:01:11.5]} 24. Rd1 {[%clk 0:00:25.9]} 24... f6 {[%clk 0:01:00.7]}
25. Kf2 {[%clk 0:00:23.2]} 25... Bf7 {[%clk 0:00:59.9]} 26. Ke3 {[%clk 0:00:22]}
26... Ne6 {[%clk 0:00:55.9]} 27. Rc3 {[%clk 0:00:20.7]} 27... Nc7 {[%clk
0:00:54.6]} 28. Nc1 {[%clk 0:00:19.2]} 28... Rd7 {[%clk 0:00:49.3]} 29. Rcd3
{[%clk 0:00:18.9]} 29... Nd5+ {[%clk 0:00:45.1]} 30. Kf2 {[%clk 0:00:18.4]}
30... Nb4 {[%clk 0:00:43.7]} 31. R3d2 {[%clk 0:00:16.2]} 31... Nxa2 {[%clk
0:00:40.7]} 32. Nxa2 {[%clk 0:00:13.5]} 32... Bxa2 {[%clk 0:00:41.6]} 33. Ke3
{[%clk 0:00:13.3]} 33... Red8 {[%clk 0:00:39.2]} 34. b4 {[%clk 0:00:12.9]} 34...
Bb3 {[%clk 0:00:37]} 35. Rb1 {[%clk 0:00:10.9]} 35... Ba4 {[%clk 0:00:36.5]} 36.
Rc1 {[%clk 0:00:08.9]} 36... Kf7 {[%clk 0:00:35.3]} 37. Rc5 {[%clk 0:00:08.8]}
37... Bb5 {[%clk 0:00:34.3]} 38. f4 {[%clk 0:00:07.6]} 38... g6 {[%clk
0:00:15.9]} 39. g4 {[%clk 0:00:07.4]} 39... Re8 {[%clk 0:00:13.3]} 40. Kf3
{[%clk 0:00:06.1]} 40... Rde7 {[%clk 0:00:13.9]} 41. e5 {[%clk 0:00:04.9]} 41...
fxe5 {[%clk 0:00:14]} 42. dxe5 {[%clk 0:00:04.8]} 42... b6 {[%clk 0:00:12]} 43.
Rc1 {[%clk 0:00:04.3]} 43... Ke6 {[%clk 0:00:11.7]} 44. Rd6+ {[%clk 0:00:03.2]}
44... Kf7 {[%clk 0:00:11.7]} 45. Rf6+ {[%clk 0:00:02.8]} 45... Kg7 {[%clk
0:00:11.8]} 46. Rd1 {[%clk 0:00:03.3]} 46... Re6 {[%clk 0:00:10.7]} 47. Rxe6
{[%clk 0:00:02.7]} 47... Rxe6 {[%clk 0:00:11.4]} 48. Rd7+ {[%clk 0:00:03.5]}
48... Kf8 {[%clk 0:00:10.8]} 49. Ke4 {[%clk 0:00:03.5]} 49... a5 {[%clk
0:00:09.8]} 50. f5 {[%clk 0:00:03.6]} 50... gxf5+ {[%clk 0:00:09.7]} 51. gxf5
{[%clk 0:00:03.9]} 51... Re7 {[%clk 0:00:10.6]} 52. Rd8+ {[%clk 0:00:03.7]}
52... Kf7 {[%clk 0:00:10.8]} 53. bxa5 {[%clk 0:00:03.6]} 53... bxa5 {[%clk
0:00:10.3]} 54. e6+ {[%clk 0:00:03.7]} 54... Kf6 {[%clk 0:00:08.6]} 55. Rf8+
{[%clk 0:00:03.4]} 55... Kg7 {[%clk 0:00:08.7]} 56. Ra8 {[%clk 0:00:01.5]} 56...
Rb7 {[%clk 0:00:06.8]} 57. Ke5 {[%clk 0:00:01.4]} 57... Bc4 {[%clk 0:00:03.7]}
58. f6+ {[%clk 0:00:01.4]} 58... Kg6 {[%clk 0:00:04.1]} 59. e7 {[%clk
0:00:01.6]} 59... Bf7 {[%clk 0:00:03]} 60. e8=Q {[%clk 0:00:01.3]} 60... Rb5+
{[%clk 0:00:02.6]} 61. Kd6 {[%clk 0:00:01.2]} 61... Bxe8 {[%clk 0:00:03.5]} 0-1